lending/lending_fUSD_20250316
["ID","MTS","AMOUNT","RATE_DAILY","PERIOD"]
[356263745,1742155837801,-779.54,0.00030365,30]
[356263746,1742155837813,-789.69302484,0.00030365,30]
[356263747,1742155837824,-1690.87377652,0.00030365,30]
[356263748,1742155837836,-403.3,0.00030365,30]
[356263749,1742155837847,-30422.1693,0.00030365,30]
[356263750,1742155837859,-11020.7784883,0.00030365,30]
[356263753,1742155837870,-47478.98132889,0.00030365,30]
[356263754,1742155837881,-1139.33364815,0.00030365,30]
[356263755,1742155837892,-895.20388697,0.00030365,30]
[356263756,1742155837904,-8787.78961928,0.00030365,30]
[356263757,1742155837915,-2249.650462,0.00030365,30]
[356263759,1742155837925,-6240.85,0.00030365,30]
[356263760,1742155837936,-7684.00974,0.00030365,30]
[356263767,1742155839723,-18476.17551878,0.00030365,30]
[356263768,1742155839832,-792.13579668,0.00030365,30]
[356263786,1742155841735,-2356.92858334,0.00030365,30]
[356263787,1742155841747,-3188.55,0.00030365,30]
[356263798,1742155842664,-5462.99999997,0.00030365,30]
[356263799,1742155842717,-6714.99999979,0.00030365,30]
[356263800,1742155842729,-782.89211,0.00030365,30]
[356263919,1742155844358,-270.15854092,0.00030365,30]
[356263920,1742155844371,-41296.21949982,0.00030365,30]
[356263921,1742155844384,-274.78426952,0.00030365,30]
[356263922,1742155844397,-7816.2084,0.00030365,30]
[356263923,1742155844410,-16999.78142211,0.00030365,30]
[356263926,1742155845619,-397.44945778,0.00030365,30]
[356263927,1742155845723,-5136.54305661,0.00030365,30]
[356263928,1742155845830,-155880.54907983,0.00030365,30]
[356263937,1742156188614,-151.16730883,0.00029,2]
[356263938,1742156188637,-487.48169117,0.00030265,2]
[356263940,1742156815228,-368.38933973,9.7e-05,2]
[356263955,1742156933861,-150.0,9.7e-05,2]
[356263959,1742156966709,-284.976238,9.7e-05,2]
[356263960,1742156966738,-6285.13659167,9.9e-05,2]
[356263961,1742156966773,-6570.11282967,9.9e-05,2]
[356263962,1742156966806,-6570.11282967,9.9e-05,2]
[356263963,1742156966841,-6570.11282967,9.9e-05,2]
[356263965,1742156966878,-6570.11282967,9.9e-05,2]
[356263966,1742156966921,-6570.11282967,9.9e-05,2]
[356263968,1742156967369,-150.50606945,9.9e-05,2]
[356263969,1742156968284,-6570.11282967,9.9e-05,2]
[356263978,1742157031809,-1981.65944888,9.9e-05,2]
[356263980,1742157031918,-380.06092322,9.9e-05,2]
[356263981,1742157031930,-2638.46326008,9.9e-05,2]
[356263982,1742157031974,-3938.51758019,9.9e-05,2]
[356263983,1742157032033,-1885.6802487,9.9e-05,2]
[356263984,1742157032045,-295.49189213,9.9e-05,2]
[356263985,1742157032056,-4873.03523845,9.9e-05,2]
[356263986,1742157032068,-1395.09553501,9.9e-05,2]
[356263987,1742157032080,-540.0,9.9e-05,2]
[356263988,1742157032092,-535.47,9.9e-05,2]
[356263989,1742157032103,-4561.16061818,9.9e-05,2]
[356263990,1742157032114,-6330.55453155,9.9e-05,2]
[356263991,1742157032125,-298.695,9.9e-05,2]
[356263992,1742157032141,-7702.67026752,9.9e-05,2]
[356263993,1742157032152,-2871.0584,9.9e-05,2]
[356263994,1742157032164,-2257.03968916,9.9e-05,2]
[356264010,1742157033967,-163.02660544,9.9e-05,2]
[356264018,1742157037634,-1391.93432235,9.9e-05,2]
[356264019,1742157037644,-150.0,9.95e-05,2]
[356264020,1742157037655,-7519.56270842,0.0001,2]
[356264021,1742157037689,-188146.78957793,0.0001,2]
[356264022,1742157037700,-603.465158,0.0001,2]
[356264023,1742157037712,-848.6840014,0.0001,2]
[356264024,1742157037746,-20140.44234091,0.0001,2]
[356264025,1742157037805,-11323.77274692,0.0001,2]
[356264026,1742157037862,-3156.42650307,0.0001,2]
[356264027,1742157037874,-1140.74733743,0.0001,2]
[356264028,1742157037918,-2854.40002,0.0001,2]
[356264063,1742157040004,-1375.4138,0.0001,2]
[356264064,1742157040016,-1132.58499996,0.0001,2]
[356264065,1742157040030,-258.95947642,0.0001,2]
[356264066,1742157040097,-150.03109969,0.0001,2]
[356264067,1742157040167,-94931.83713446,0.0001,2]
[356264068,1742157040179,-106681.13007232,0.0001,2]
[356264069,1742157040220,-1011.06427204,0.0001,2]
[356264070,1742157040232,-319.83586182,0.0001,2]
[356264071,1742157040278,-4594.79109732,0.0001,2]
[356264072,1742157040332,-963.19752,0.0001,2]
[356264073,1742157040344,-1090.1673883,0.0001,2]
[356264092,1742157042831,-1943.25529658,0.0001,2]
[356264094,1742157042843,-13880.54347025,0.0001,2]
[356264095,1742157042887,-111207.3299829,0.0001,2]
[356264096,1742157042942,-72462.32164005,0.0001,2]
[356264097,1742157044660,-12888.52295393,0.0001,2]
[356264098,1742157044672,-11869.66841083,0.0001,2]
[356264099,1742157044684,-1875.56927,0.0001,2]
[356264100,1742157044696,-361.45361106,0.0001,2]
[356264101,1742157044707,-2803.85817402,0.0001,2]
[356264102,1742157044718,-109668.87610268,0.0001,2]
[356264103,1742157044730,-1085.24362362,0.0001,2]
[356264108,1742157045986,-16708.4,0.0001,2]
[356264147,1742157513483,-189.64102603,9.8e-05,2]
[356264149,1742157706944,-1620.85297397,9.8e-05,2]
[356264150,1742157706967,-172.978,9.8e-05,2]
[356264151,1742157706990,-2.82822603,9.99e-05,2]
[356264153,1742157856095,-824.58177397,9.99e-05,2]
[356264154,1742157856119,-150.0,9.994e-05,2]
[356264155,1742157856143,-500.0,9.994e-05,2]
[356264156,1742157856166,-150.0,9.999e-05,2]
[356264157,1742157856195,-300.0,9.999e-05,2]
[356264158,1742157856222,-878.98272603,0.0001,2]
[356264171,1742158169270,-154.47261532,9.9e-05,2]
[356264176,1742158232037,-252.252,9.9e-05,2]
[356264177,1742158232093,-3944.66478468,9.9e-05,2]
[356264178,1742158232103,-150.0,9.999e-05,2]
[356264179,1742158232112,-196.51784312,9.999e-05,2]
[356264180,1742158232122,-7964.02043662,0.0001,2]
[356264181,1742158232133,-1582.22003,0.0001,2]
[356264182,1742158232202,-250.54156941,0.0001,2]
[356264183,1742158232311,-1865.45817321,0.0001,2]
[356264185,1742158237827,-5049.4,0.0001,2]
[356264186,1742158237839,-16098.20203296,0.0001,2]
[356264187,1742158237884,-336.59973038,0.0001,2]
[356264188,1742158237897,-661.21728265,0.0001,2]
[356264189,1742158237908,-735.0921918,0.0001,2]
[356264190,1742158237941,-289.80501746,0.0001,2]
[356264191,1742158237953,-16886.75199999,0.0001,2]
[356264192,1742158237964,-3476.6,0.0001,2]
[356264193,1742158237998,-253.340219,0.0001,2]
[356264194,1742158238082,-431.47097244,0.0001,2]
[356264195,1742158238095,-1520.0,0.0001,2]
[356264341,1742158240243,-361.97643005,0.0001,2]
[356264398,1742158381051,-150.0,9.9e-05,2]
[356264399,1742158590977,-139.3259,9.9e-05,2]
[356264400,1742158591002,-20.3841,9.9e-05,2]
[356264401,1742158712865,-273.5267,9.8e-05,2]
[356264403,1742159252775,-1174.8683,9.8e-05,2]
[356264404,1742159252803,-286.27086715,9.89e-05,2]
[356264405,1742159252831,-300.0,9.899e-05,2]
[356264406,1742159252856,-7518.6953,9.9e-05,2]
[356264407,1742159252882,-19299.2368,9.9e-05,2]
[356264408,1742159252907,-28383.7743,9.9e-05,2]
[356264409,1742159252932,-14053.9829,9.9e-05,2]
[356264410,1742159252957,-1230.6217,9.9e-05,2]
[356264411,1742159252984,-505.58729489,9.9e-05,2]
[356264412,1742159253012,-500.0,9.945e-05,2]
[356264413,1742159253033,-1174.8683,0.0001,2]
[356264414,1742159253048,-286.27086715,0.0001,2]
[356264415,1742159253060,-300.0,0.0001,2]
[356264416,1742159253072,-7518.6953,0.0001,2]
[356264417,1742159253083,-19299.2368,0.0001,2]
[356264418,1742159253095,-28383.7743,0.0001,2]
[356264419,1742159253106,-14053.9829,0.0001,2]
[356264420,1742159253117,-1230.6217,0.0001,2]
[356264421,1742159253135,-505.58729489,0.0001,2]
[356264422,1742159253150,-500.0,0.0001,2]
[356264423,1742159253161,-914284.92507592,0.0001,2]
[356264424,1742159345957,-370.58905823,9.999e-05,2]
[356264425,1742159345985,-168.60121968,9.999e-05,2]
[356264426,1742159346012,-251.30109591,9.999e-05,2]
[356264427,1742159346039,-500.0,0.0001,2]
[356264428,1742159346059,-370.58905823,0.0001,2]
[356264429,1742159346070,-168.60121968,0.0001,2]
[356264430,1742159346082,-251.30109591,0.0001,2]
[356264431,1742159346093,-500.0,0.0001,2]
[356264432,1742159346109,-482520.01725236,0.0001,2]
[356264435,1742159432566,-2090.53122366,9.91e-05,2]
[356264436,1742159432577,-468047.66670688,0.0001,2]
[356264437,1742159432586,-908.95343,0.0001,2]
[356264438,1742159432595,-339.98652108,0.0001,2]
[356264439,1742159432605,-156.0,0.0001,3]
[356264440,1742159432614,-155.0,0.0001,3]
[356264441,1742159432624,-433.921571,0.00010225,2]
[356264442,1742159432635,-500.0,0.00010407,2]
[356264443,1742159432644,-150.0,0.0001078,2]
[356264444,1742159432654,-231.93161202,0.000109,2]
[356264445,1742159432663,-150.0,0.00010959,2]
[356264446,1742159432673,-150.0,0.00010999,2]
[356264447,1742159432684,-500.0,0.00010999,2]
[356264448,1742159432694,-500.0,0.00011,2]
[356264449,1742159432705,-295.3555,0.00012911,2]
[356264450,1742159432714,-1966.08769875,0.00013244,2]
[356264451,1742159432724,-500.0,0.00013699,2]
[356264453,1742159432734,-500.0,0.00013699,2]
[356264455,1742159432743,-500.0,0.00013699,2]
[356264457,1742159432752,-500.0,0.00013699,2]
[356264458,1742159432762,-500.0,0.00013699,2]
[356264459,1742159432772,-500.0,0.00013699,2]
[356264460,1742159432785,-408.32339932,0.00013699,2]
[356264461,1742159432795,-9999.99,0.00014504,2]
[356264462,1742159432804,-155.0,0.00014688,3]
[356264463,1742159432814,-231.93161202,0.00014927,2]
[356264464,1742159432825,-908.95344,0.00015,2]
[356264465,1742159432835,-5269.17,0.0001531,2]
[356264466,1742159432845,-150.99,0.0001531,2]
[356264467,1742159432856,-20597.42,0.0001531,2]
[356264468,1742159432865,-299.99,0.0001531,2]
[356264469,1742159432874,-150.99,0.0001531,2]
[356264470,1742159432884,-158.85,0.00015716,2]
[356264471,1742159432893,-500.0,0.00016521,2]
[356264472,1742159432903,-851.08,0.00018012,2]
[356264473,1742159432913,-153.87,0.000186,2]
[356264474,1742159432923,-250.0,0.00019,2]
[356264475,1742159432932,-23900.0,0.00019357,2]
[356264476,1742159432941,-155.0,0.00019375,3]
[356264477,1742159432951,-231.93161202,0.00019589,2]
[356264478,1742159432960,-1000.0,0.0002,2]
[356264479,1742159432970,-908.95344,0.0002,2]
[356264480,1742159432980,-232.73,0.00020227,2]
[356264481,1742159432990,-851.08,0.00020276,2]
[356264482,1742159432999,-229.22492319,0.000203,2]
[356264483,1742159433009,-500.0,0.000203,2]
[356264484,1742159433019,-183.9,0.00020578,2]
[356264485,1742159433029,-526.79673535,0.000206,2]
[356264486,1742159433038,-526.79673533,0.000206,2]
[356264487,1742159433048,-526.79673533,0.000206,2]
[356264488,1742159433057,-526.79673533,0.000206,2]
[356264489,1742159433067,-526.79673533,0.000206,2]
[356264490,1742159433076,-526.79673533,0.000206,2]
[356264491,1742159433085,-526.79673533,0.000206,2]
[356264492,1742159433095,-526.79673533,0.000206,2]
[356264493,1742159433104,-526.79673533,0.00021659,3]
[356264494,1742159433114,-851.08,0.0002254,2]
[356264495,1742159433124,-500.0,0.000227,2]
[356264496,1742159433134,-232.73,0.00022755,2]
[356264497,1742159433143,-526.79673533,0.00023003,3]
[356264498,1742159433153,-1338.0,0.00023474,2]
[356264499,1742159433164,-3201.3665351,0.00023494,2]
[356264500,1742159433174,-250.0,0.00023524,2]
[356264501,1742159433183,-1384.96,0.00023969,2]
[356264502,1742159433193,-155.0,0.00024063,3]
[356264503,1742159433204,-231.93161202,0.00024251,2]
[356264504,1742159433214,-526.79673533,0.00024348,3]
[356264505,1742159433224,-5785.38,0.000244,2]
[356264506,1742159433234,-1000.0,0.00024448,2]
[356264507,1742159433244,-2000.0,0.00024693,4]
[356264508,1742159433254,-152.05,0.0002479,2]
[356264509,1742159433265,-52022.69542807,0.000248,3]
[356264510,1742159433277,-488.53802439,0.000248,3]
[356264511,1742159433291,-955.21213578,0.000248,3]
[356264512,1742159437975,-837.40192961,0.000248,3]
[356264513,1742159438033,-3451.34324685,0.000248,3]
[356264514,1742159438044,-41358.53300018,0.000248,3]
[356264515,1742159438056,-9487.32132093,0.000248,3]
[356264516,1742159438067,-12075.92852,0.000248,3]
[356264517,1742159438079,-987.54270914,0.000248,3]
[356264518,1742159438090,-527.74702981,0.000248,3]
[356264519,1742159438101,-364.04259866,0.000248,3]
[356264520,1742159438113,-1330.55565,0.000248,3]
[356264521,1742159438124,-385.36424049,0.000248,3]
[356264522,1742159438135,-865.69,0.000248,3]
[356264523,1742159438146,-346.26,0.000248,3]
[356264524,1742159438157,-793.65,0.000248,3]
[356264525,1742159438168,-360.06,0.000248,3]
[356264526,1742159438184,-4193.22936819,0.000248,3]
[356264527,1742159438195,-3629.02413031,0.000248,3]
[356264528,1742159438207,-78238.77238259,0.000248,3]
[356264529,1742159438217,-851.08,0.00024804,2]
[356264530,1742159438226,-152.05,0.0002489,2]
[356264531,1742159438236,-68667.3403403,0.000249,3]
[356264532,1742159438245,-908.95343,0.00025,2]
[356264533,1742159438253,-232.73,0.00025283,120]
[356264534,1742159438263,-526.79673533,0.00025693,4]
[356264535,1742159438273,-500.54250312,0.00025779,2]
[356264536,1742159438283,-2000.0,0.00026224,4]
[356264537,1742159438291,-339.98652107,0.000264,2]
[356264538,1742159438303,-2543.23482742,0.00026657,3]
[356264539,1742159438312,-166.07,0.00026849,2]
[356264540,1742159438321,-164.89,0.00026849,2]
[356264541,1742159438330,-158.57,0.00026849,2]
[356264542,1742159438339,-176.63,0.00026959,2]
[356264543,1742159438348,-526.79673533,0.00027038,4]
[356264544,1742159438357,-851.08,0.00027067,2]
[356264545,1742159438367,-1000.0,0.00027504,2]
[356264546,1742159438377,-2000.0,0.00027755,4]
[356264547,1742159438386,-232.73,0.00027812,120]
[356264548,1742159438395,-526.79673533,0.00028383,5]
[356264549,1742159438404,-156.0,0.0002875,3]
[356264550,1742159438414,-155.0,0.0002875,3]
[356264551,1742159438424,-231.93161202,0.00028914,2]
[356264552,1742159438433,-2000.0,0.00029285,4]
[356264553,1742159438443,-851.08,0.00029331,2]
[356264554,1742159438452,-341.734189,0.00029453,4]
[356264555,1742159438461,-526.79673533,0.00029728,5]
[356264556,1742159438470,-908.95344,0.0003,2]
[356264557,1742159438479,-4090.40948157,0.00030119,2]
[356264558,1742159438487,-200.0,0.00030137,60]
[356264559,1742159438497,-10104.70755292,0.00030309,3]
[356264560,1742159438508,-68.23175678,0.00030309,3]
[356264561,1742159438517,-910.783741,0.00030319,2]
[356264562,1742159440293,-318.72088959,0.00030319,2]
[356264563,1742159440405,-50198.40837384,0.00030319,2]
[356264564,1742159440414,-232.73,0.0003034,120]
[356264565,1742159440424,-151.0,0.00030363,2]
[356264566,1742159440434,-757.27,0.00030364,2]
[356264567,1742159440443,-151.0,0.00030371,7]
[356264568,1742159440453,-152.563037,0.00030371,7]
[356264569,1742159440462,-153.22342,0.00030371,7]
[356264570,1742159440471,-152.159975,0.00030371,7]
[356264571,1742159440481,-151.532915,0.00030371,7]
[356264572,1742159440490,-23751.08419657,0.00030409,2]
[356264573,1742159440499,-152.05,0.00030409,2]
[356264574,1742159440509,-152.05,0.00030409,2]
[356264575,1742159440518,-152.05,0.00030409,2]
[356264576,1742159440527,-152.05,0.00030409,2]
[356264577,1742159440537,-152.05,0.00030409,2]
[356264578,1742159440546,-152.05,0.00030409,2]
[356264579,1742159440555,-152.05,0.00030409,2]
[356264580,1742159440564,-152.05,0.00030409,2]
[356264581,1742159440573,-152.05,0.00030409,2]
[356264582,1742159440582,-152.05,0.00030409,2]
[356264583,1742159440592,-152.05,0.00030409,2]
[356264584,1742159440602,-152.05,0.00030409,2]
[356264585,1742159440611,-152.05,0.00030409,2]
[356264586,1742159440620,-152.05,0.00030409,2]
[356264587,1742159440630,-152.05,0.00030409,2]
[356264588,1742159440639,-152.05,0.00030409,2]
[356264589,1742159440648,-152.05,0.00030409,2]
[356264590,1742159440657,-152.05,0.00030409,2]
[356264591,1742159440666,-152.05,0.00030409,2]
[356264592,1742159440676,-152.05,0.00030409,2]
[356264593,1742159440685,-152.05,0.00030409,2]
[356264594,1742159440695,-152.05,0.00030409,2]
[356264595,1742159440704,-152.05,0.00030409,2]
[356264596,1742159440714,-152.05,0.00030409,2]
[356264597,1742159440723,-1298.0,0.00030419,5]
[356264598,1742159440733,-2943215.31557445,0.00030419,30]
[356264599,1742159440744,-86738.0,0.00030419,30]
[356264600,1742159440755,-3915.0805156,0.00030419,30]
[356264601,1742159440767,-2101.0618,0.00030419,30]
[356264602,1742159440780,-10733.52229452,0.00030419,30]
[356264603,1742159440794,-485665.8095639,0.00030419,30]
[356264604,1742159440803,-131281.05247507,0.00030419,30]
[356264605,1742159440833,-309.66414021,0.00030419,30]
[356264606,1742159440899,-12422.8067518,0.00030419,30]
[356264614,1742159443096,-514.297339,0.000291,2]
[356264615,1742159443106,-500.0,0.000301,2]
[356264616,1742159443115,-2459.74078829,0.00030419,30]
[356264617,1742159443152,-385.11499998,0.00030419,30]
[356264618,1742159443208,-12739.59089149,0.00030419,30]
[356264619,1742159443220,-327.70893409,0.00030419,30]
[356264620,1742159443350,-70.97355873,0.00030419,30]
[356264622,1742159445038,-39777.05525851,0.00030419,30]
[356264623,1742159445074,-25600.49998047,0.00030419,30]
[356264628,1742159446094,-418.18435819,0.00030419,30]
[356264629,1742159446106,-2176.55578582,0.00030419,30]
[356264631,1742159446158,-8849.1,0.00030419,30]
[356264634,1742159446169,-1674.37468109,0.00030419,30]
[356264636,1742159446181,-470.0,0.00030419,30]
[356264638,1742159446383,-767347.12864908,0.00030419,30]
[356264727,1742160632360,-150.0,9.999e-05,2]
[356264728,1742160632370,-150.0,9.999e-05,2]
[356264729,1742160632379,-259.41234076,9.999e-05,2]
[356264730,1742160632389,-11752.79528389,0.0001,2]
[356264731,1742160632418,-429.14625814,0.0001,2]
[356264732,1742160632480,-1025.8,0.0001,2]
[356264733,1742160632542,-979.02,0.0001,2]
[356264734,1742160632554,-1924.68840001,0.0001,2]
[356264832,1742160638354,-2523.17258302,0.0001,2]
[356264835,1742160640472,-91615.41966037,0.0001,2]
[356264836,1742160640482,-1614606.5735787,0.0001,2]
[356264837,1742160640492,-150.0,0.00010419,2]
[356264838,1742160640502,-339.98616053,0.00010899,2]
[356264839,1742160640511,-150.0,0.00010999,2]
[356264840,1742160640520,-255.0,0.00010999,2]
[356264841,1742160640529,-5353.25776854,0.00011099,2]
[356264842,1742160640538,-298.0,0.00012099,2]
[356264843,1742160640547,-5353.25776847,0.00012966,2]
[356264844,1742160640557,-152.05,0.00013,2]
[356264845,1742160640566,-152.05,0.00013,2]
[356264846,1742160640576,-152.05,0.00013,2]
[356264847,1742160640585,-152.05,0.00013,2]
[356264848,1742160640595,-152.05,0.00013,2]
[356264849,1742160640604,-152.05,0.00013,2]
[356264850,1742160640613,-500.0,0.00013503,2]
[356264851,1742160640622,-378.70259992,0.00013699,2]
[356264852,1742160640631,-500.0,0.00015015,2]
[356264853,1742160640641,-5353.25776847,0.00015133,2]
[356264854,1742160640650,-5353.25776847,0.00017299,2]
[356264855,1742160640659,-3431.94925137,0.000183,2]
[356264856,1742160640668,-102014.62221557,0.000189,2]
[356264857,1742160640677,-24732.91960147,0.000189,2]
[356264858,1742160640686,-152.05,0.0001899,2]
[356264859,1742160640695,-77428.44288691,0.00019,2]
[356264860,1742160640705,-961.61,0.00019,2]
[356264861,1742160640713,-1000.0,0.0001902,2]
[356264862,1742160640722,-5353.25776847,0.00019466,2]
[356264863,1742160640731,-164570.12209464,0.000196,2]
[356264864,1742160640743,-152.05,0.0001999,2]
[356264865,1742160640752,-2000.0,0.0002,4]
[356264866,1742160640761,-263.39836781,0.000204,2]
[356264867,1742160640769,-263.39836766,0.000204,2]
[356264868,1742160640778,-263.39836766,0.000204,2]
[356264869,1742160640787,-263.39836766,0.000204,2]
[356264870,1742160640800,-263.39836766,0.000204,2]
[356264871,1742160640808,-263.39836766,0.000204,2]
[356264872,1742160640817,-263.39836766,0.000204,2]
[356264873,1742160640826,-263.39836766,0.000204,2]
[356264874,1742160640835,-24732.91960138,0.00021456,2]
[356264875,1742160640844,-5353.25776847,0.00021633,2]
[356264876,1742160640853,-263.39836766,0.00021659,3]
[356264877,1742160640863,-250.0,0.000222,2]
[356264878,1742160640872,-600.0,0.000222,2]
[356264879,1742160640881,-511.0,0.000222,2]
[356264880,1742160640890,-5206.84,0.000222,2]
[356264881,1742160640899,-2000.0,0.00022222,4]
[356264882,1742160640908,-232.77,0.00022583,2]
[356264883,1742160640917,-263.39836766,0.00023003,3]
[356264884,1742160640927,-5353.25776847,0.000238,2]
[356264885,1742160640936,-24732.91960138,0.00024011,2]
[356264886,1742160640946,-893.84681126,0.00024223,2]
[356264887,1742160640955,-157.33,0.00024223,2]
[356264888,1742160640965,-23900.0,0.00024223,2]
[356264889,1742160640975,-263.39836766,0.00024348,3]
[356264890,1742160640984,-157.33,0.00024396,2]
[356264891,1742160640994,-2000.0,0.00024444,4]
[356264892,1742160641003,-157.33,0.00024569,2]
[356264893,1742160641012,-255.19,0.00024658,4]
[356264894,1742160641021,-157.33,0.00024742,2]
[356264895,1742160641031,-152.05,0.0002479,2]
[356264896,1742160641041,-145530.834332,0.000248,3]
[356264897,1742160641050,-3000.0,0.0002488,2]
[356264898,1742160641059,-15259.4089646,0.000249,3]
[356264899,1742160641069,-299.99,0.00024915,7]
[356264900,1742160641078,-1416.44,0.00024915,2]
[356264901,1742160641088,-157.33,0.00024915,2]
[356264902,1742160641097,-1881.99999974,0.00025,7]
[356264903,1742160641107,-157.33,0.00025088,2]
[356264904,1742160641116,-157.33,0.00025261,2]
[356264905,1742160641126,-157.33,0.00025434,2]
[356264906,1742160641138,-263.39836766,0.00025693,4]
[356264907,1742160641148,-5353.25776847,0.00025966,2]
[356264908,1742160641158,-5206.84,0.00026,2]
[356264909,1742160641171,-927.72,0.00026061,2]
[356264910,1742160641181,-3252.69578881,0.00026514,2]
[356264911,1742160641190,-24732.91960138,0.00026567,2]
[356264912,1742160641199,-2000.0,0.00026667,4]
[356264913,1742160641210,-180.91,0.00026849,2]
[356264914,1742160641219,-153.87,0.00026915,2]
[356264915,1742160641229,-1148.29363079,0.00027,2]
[356264916,1742160641240,-263.39836766,0.00027038,4]
[356264917,1742160641249,-150.0,0.00027135,7]
[356264918,1742160641259,-500.0,0.00027367,2]
[356264919,1742160641268,-250.20062118,0.000277,2]
[356264920,1742160641278,-600.59334017,0.000277,2]
[356264921,1742160641287,-511.07625496,0.000277,2]
[356264922,1742160641296,-5353.25776847,0.00028133,2]
[356264923,1742160641306,-927.72,0.00028325,2]
[356264924,1742160641316,-250.0,0.00028347,2]
[356264925,1742160641326,-263.39836766,0.00028383,5]
[356264926,1742160641335,-38082.74421293,0.00028445,2]
[356264927,1742160641345,-1497.792,0.00028455,19]
[356264928,1742160641355,-3241.74,0.00028455,2]
[356264929,1742160641366,-82874.69,0.00028592,2]
[356264930,1742160641376,-2000.0,0.00028889,4]
[356264931,1742160641385,-152.05,0.00029112,2]
[356264932,1742160641395,-24732.91960138,0.00029122,2]
[356264933,1742160641405,-166.66,0.00029128,2]
[356264934,1742160641416,-792.11449072,0.000294,2]
[356264935,1742160641426,-256.3006417,0.00029496,4]
[356264936,1742160641436,-263.39836766,0.00029728,5]
[356264937,1742160641446,-435.93042507,0.0003,20]
[356264938,1742160641456,-300.0,0.0003,2]
[356264939,1742160641466,-300.0,0.0003,2]
[356264940,1742160641477,-339.36889613,0.0003,2]
[356264941,1742160641488,-5206.84,0.0003,2]
[356264942,1742160641501,-166.66,0.00030089,2]
[356264943,1742160641511,-1460.87,0.000301,2]
[356264944,1742160641522,-150.0,0.00030137,2]
[356264945,1742160641532,-5790.8652,0.00030219,2]
[356264946,1742160641542,-572.69550276,0.000303,2]
[356264947,1742160641551,-425.16075682,0.000303,2]
[356264948,1742160641561,-5353.25776847,0.000303,2]
[356264949,1742160641571,-178.09683232,0.00030308,2]
[356264950,1742160641581,-1000.0,0.00030319,2]
[356264951,1742160641591,-8762.9403,0.00030319,2]
[356264952,1742160641601,-152.05,0.0003039,2]
[356264953,1742160641611,-152.05,0.0003039,2]
[356264954,1742160641621,-152.05,0.0003039,2]
[356264955,1742160641631,-152.05,0.0003039,2]
[356264956,1742160641641,-152.05,0.0003039,2]
[356264957,1742160641650,-152.05,0.0003039,2]
[356264958,1742160641660,-152.05,0.0003039,2]
[356264959,1742160641670,-152.05,0.0003039,2]
[356264960,1742160641680,-152.05,0.0003039,2]
[356264961,1742160641691,-152.05,0.0003039,2]
[356264962,1742160641701,-152.05,0.0003039,2]
[356264963,1742160641711,-152.05,0.0003039,2]
[356264964,1742160641722,-152.05,0.0003039,2]
[356264965,1742160641732,-152.05,0.0003039,2]
[356264966,1742160641744,-152.05,0.0003039,2]
[356264967,1742160641754,-29861.62130743,0.000304,30]
[356264968,1742160641763,-158599.87512851,0.000304,2]
[356264969,1742160641773,-14835.9424205,0.000304,2]
[356264970,1742160641783,-227.21092938,0.000304,2]
[356264971,1742160641793,-172.43450647,0.000304,2]
[356264972,1742160641803,-6000.0,0.000304,2]
[356264973,1742160641812,-372.57314315,0.000304,2]
[356264974,1742160641822,-1459.37397597,0.000304,2]
[356264975,1742160641832,-1025.60820439,0.000304,2]
[356264976,1742160641842,-4813.57962794,0.000304,2]
[356264977,1742160641852,-176.95947903,0.000304,2]
[356264978,1742160641862,-558.8342323,0.000304,2]
[356264979,1742160641871,-150.0,0.000304,2]
[356264980,1742160641881,-7715.17766027,0.000304,2]
[356264981,1742160641890,-602.44050261,0.000304,2]
[356264982,1742160641900,-621.49782977,0.000304,2]
[356264983,1742160641910,-213.05444904,0.000304,2]
[356264984,1742160641932,-30450.55283011,0.000304,2]